bitfinex/quotes_SOLUSD_20250107
["timestamp","ask_amount","ask_price","bid_price","bid_amount"]
[1736281243043,0.12549,203.8,203.68,22.09436005]
[1736281243243,0.12549,203.8,203.68,7.64116635]
[1736281244465,0.12549,203.8,203.66,14.4531937]
[1736281245144,0.12549,203.8,203.68,14.4531937]
[1736281245746,0.12549,203.8,203.68,23.1533409]
[1736281245946,0.12549,203.8,203.66,23.1533409]
[1736281246250,0.12549,203.8,203.67,23.1533409]
[1736281246646,0.12549,203.8,203.7,23.1533409]
[1736281247172,0.12549,203.8,203.69,23.1533409]
[1736281247657,0.12549,203.8,203.69,22.6533409]
[1736281247858,0.12549,203.8,203.68,23.1533409]
[1736281248056,0.12549,203.8,203.7,23.1533409]
[1736281248781,0.12549,203.8,203.71,23.1533409]
[1736281248956,0.12549,203.8,203.73,23.1533409]
[1736281249159,0.12549,203.8,203.72,23.1533409]
[1736281250981,0.12549,203.8,203.69,23.1533409]
[1736281251605,0.12549,203.8,203.71,23.1533409]
[1736281251773,0.12549,203.8,203.73,23.1533409]
[1736281253151,0.12549,203.78,203.73,23.1533409]
[1736281254376,19.642256,203.82,203.74,23.1533409]
[1736281254567,2.8,203.86,203.74,23.1533409]
[1736281254768,0.12549,203.8,203.74,23.1533409]
[1736281254968,0.12549,203.8,203.73,23.1533409]
[1736281255565,20.0,203.81,203.76,23.1533409]
[1736281255999,0.12549,203.8,203.79,23.1533409]
[1736281256295,7.8194,203.89,203.79,23.1533409]
[1736281256604,20.0,203.86,203.79,23.1533409]
[1736281256758,0.12549,203.85,203.79,23.1533409]
[1736281257175,0.12549,203.85,203.78,23.1533409]
[1736281258281,0.12549,203.85,203.77,23.1533409]
[1736281258598,27.454642,203.89,203.71,7.64116635]
[1736281258599,20.0,203.8,203.71,7.64116635]
[1736281258885,0.12549,203.79,203.69,7.64116635]
[1736281259275,0.12549,203.79,203.67,23.1533409]
[1736281259996,0.12549,203.79,203.66,1.5367]
[1736281260161,23.902374,203.79,203.66,23.1533409]
[1736281260467,0.12549,203.79,203.68,23.1533409]
[1736281260669,0.12549,203.79,203.69,23.1533409]
[1736281261369,0.12549,203.79,203.66,23.776884]
[1736281261576,0.12549,203.79,203.73,23.1533409]
[1736281261772,0.12549,203.79,203.74,23.1533409]
[1736281261979,0.12549,203.79,203.75,23.1533409]
[1736281262166,8.1229,203.83,203.77,23.1533409]
[1736281262373,2.8,203.87,203.79,23.1533409]
[1736281262561,20.0,203.85,203.77,23.1533409]
[1736281262765,0.12549,203.84,203.75,23.1533409]
[1736281264587,0.12549,203.84,203.73,23.1533409]
[1736281265288,0.12549,203.84,203.72,23.776884]
[1736281265289,0.12549,203.84,203.74,23.1533409]
[1736281265462,0.12549,203.84,203.75,23.1533409]
[1736281265664,0.12549,203.84,203.78,23.1533409]
[1736281265890,0.12549,203.84,203.76,23.1533409]
[1736281267374,0.12549,203.84,203.77,23.1533409]
[1736281267970,0.12549,203.84,203.75,23.1533409]
[1736281268590,0.12549,203.84,203.74,23.1533409]
[1736281268786,0.12549,203.84,203.73,53.382374]
[1736281269090,0.12549,203.84,203.75,23.1533409]
[1736281270779,0.12549,203.84,203.77,23.1533409]
[1736281271081,7.8488,203.93,203.81,23.1533409]
[1736281271292,7.8488,203.93,203.83,23.1533409]
[1736281271643,0.12549,203.92,203.84,23.1533409]
[1736281272111,0.12549,203.89,203.84,23.1533409]
[1736281272664,0.12549,203.89,203.79,23.1533409]
[1736281272869,0.12549,203.89,203.77,167.09450725]
[1736281273268,0.12549,203.89,203.79,23.1533409]
[1736281273798,0.12549,203.89,203.78,23.1533409]
[1736281273979,0.12549,203.89,203.77,159.4533409]
[1736281274769,0.12549,203.89,203.79,23.1533409]
[1736281274965,0.12549,203.89,203.81,23.1533409]
[1736281275184,7.8488,203.93,203.83,23.1533409]
[1736281275399,7.8488,203.93,203.84,14.44885139]
[1736281275802,7.8488,203.93,203.8,30.12549]
[1736281275803,7.8488,203.93,203.8,14.44885139]
[1736281276119,0.12549,203.89,203.79,14.44885139]
[1736281276276,0.12549,203.89,203.8,14.44885139]
[1736281276480,0.12549,203.89,203.81,14.44885139]
[1736281276791,0.12549,203.89,203.82,14.44885139]
[1736281278315,0.12549,203.89,203.79,0.12549]
[1736281278608,0.12549,203.89,203.78,14.44885139]
[1736281278809,0.12549,203.89,203.78,23.776884]
[1736281279709,0.12549,203.89,203.75,0.12549]
[1736281279884,0.12549,203.89,203.78,14.44885139]
[1736281280205,0.12549,203.89,203.79,14.44885139]
[1736281280404,0.12549,203.89,203.78,14.44885139]
[1736281280911,0.12549,203.89,203.78,23.776884]
[1736281281208,0.12549,203.89,203.74,26.37241774]
[1736281281397,20.12549,203.85,203.74,7.64116635]
[1736281282116,20.12549,203.85,203.71,7.64116635]
[1736281282597,20.12549,203.85,203.7,23.902374]
[1736281282983,20.12549,203.85,203.71,14.44885139]
[1736281283193,20.12549,203.85,203.73,14.44885139]
[1736281283515,0.12549,203.85,203.78,14.44885139]
[1736281283691,8.0671,203.88,203.78,14.44885139]
[1736281283891,0.12549,203.84,203.78,14.44885139]
[1736281284094,0.12549,203.84,203.77,14.44885139]
[1736281284294,0.12549,203.84,203.78,14.44885139]
[1736281284693,0.12549,203.84,203.73,7.64116635]
[1736281284893,0.12549,203.84,203.74,14.44885139]
[1736281286190,0.12549,203.84,203.73,14.44885139]
[1736281286515,0.12549,203.84,203.75,14.44885139]
[1736281286906,0.12549,203.84,203.74,14.44885139]
[1736281287119,0.12549,203.84,203.73,14.57434139]
[1736281287295,0.12549,203.84,203.72,38.22573539]
[1736281287617,0.12549,203.84,203.72,46.92165176]
[1736281287815,0.12549,203.84,203.72,23.14476776]
[1736281289410,0.12549,203.84,203.79,23.14476776]
[1736281289618,0.12549,203.84,203.78,23.14476776]
[1736281290096,0.12549,203.84,203.77,23.14476776]
[1736281291717,0.12549,203.84,203.78,23.14476776]
[1736281292018,0.12549,203.84,203.77,23.14476776]
[1736281293627,0.12549,203.84,203.76,23.14476776]
[1736281293795,0.12549,203.84,203.74,23.14476776]
[1736281294200,0.12549,203.84,203.73,23.14476776]
[1736281294614,0.12549,203.84,203.72,7.64116635]
[1736281295105,0.12549,203.84,203.73,23.14476776]
[1736281295600,0.12549,203.84,203.75,23.14476776]
[1736281296023,0.12549,203.84,203.74,23.14476776]
[1736281296697,0.12549,203.84,203.76,23.14476776]
[1736281296901,8.0671,203.88,203.78,23.14476776]
[1736281297223,0.12549,203.84,203.78,23.14476776]
[1736281297524,0.12549,203.84,203.75,46.92165176]
[1736281298033,0.12549,203.84,203.75,23.14476776]
[1736281300423,0.12549,203.84,203.76,23.14476776]
[1736281301007,0.12549,203.84,203.78,23.14476776]
[1736281301213,20.0,203.85,203.8,23.14476776]
[1736281301422,8.0671,203.88,203.77,0.73577895]
[1736281301658,8.0671,203.88,203.82,23.14476776]
[1736281301949,0.12549,203.87,203.81,23.14476776]
[1736281303832,0.12549,203.87,203.8,23.14476776]
[1736281304336,8.0671,203.88,203.81,23.776884]
[1736281304520,8.0671,203.88,203.81,46.92165176]
[1736281304827,8.0671,203.88,203.82,23.14476776]
[1736281305402,8.0671,203.88,203.81,23.14476776]
[1736281306107,0.12549,203.87,203.8,46.92165176]
[1736281306406,0.12549,203.87,203.8,31.41805035]
[1736281307130,0.12549,203.87,203.79,60.78593411]
[1736281307523,20.0,203.85,203.79,60.78593411]
[1736281307744,20.0,203.85,203.8,7.64116635]
[1736281308104,20.0,203.85,203.79,53.14476776]
[1736281308105,20.0,203.85,203.79,60.78593411]
[1736281308305,20.0,203.85,203.79,7.64116635]
[1736281309039,20.0,203.85,203.77,7.64116635]
[1736281309642,0.12549,203.87,203.81,14.4595257]
[1736281310003,20.0,203.9,203.82,14.4595257]
[1736281310231,20.0,203.9,203.83,14.4595257]
[1736281310619,7.7171,203.93,203.86,14.4595257]
[1736281310830,7.7578,203.98,203.89,14.4595257]
[1736281311002,7.7578,203.98,203.91,14.4595257]
[1736281311406,7.7578,203.98,203.93,14.4595257]
[1736281311606,1.4807,203.98,203.93,14.4595257]
[1736281311802,0.12549,204.02,203.94,14.4595257]
[1736281312030,20.0,204.0,203.93,14.4595257]
[1736281312331,20.0,204.0,203.93,15.19477032]
[1736281312718,0.12549,204.02,203.95,14.4595257]
[1736281312909,7.7578,204.03,203.97,14.4595257]
[1736281313251,7.7578,204.08,203.98,14.4595257]
[1736281313424,0.12549,204.07,203.95,0.12549]
[1736281313619,0.12549,204.07,203.97,14.4595257]
[1736281313954,0.12549,204.07,203.98,14.4595257]
[1736281314155,20.0,204.05,203.98,14.4595257]
[1736281314442,20.0,204.05,203.97,14.4595257]
[1736281314841,20.0,204.05,203.98,14.4595257]
[1736281315345,20.0,204.05,203.99,14.4595257]
[1736281316352,7.7578,204.08,204.01,14.4595257]
[1736281316550,8.0289,204.14,204.03,14.4595257]
[1736281316757,0.12549,204.13,204.02,14.4595257]
[1736281316925,0.12549,204.13,204.03,14.4595257]
[1736281317253,0.12549,204.13,204.04,14.4595257]
[1736281317620,20.0,204.11,204.04,14.4595257]
[1736281317955,20.0,204.11,204.01,2.78]
[1736281320661,20.0,204.11,204.02,14.4595257]
[1736281320878,20.0,204.11,204.03,14.4595257]
[1736281321037,20.0,204.11,204.02,14.4595257]
[1736281321236,20.0,204.11,204.01,17.2395257]
[1736281321743,20.0,204.11,204.02,14.4595257]
[1736281321948,20.0,204.11,204.04,14.4595257]
[1736281322458,20.0,204.11,204.03,14.4595257]
[1736281322759,20.0,204.11,204.02,14.4595257]
[1736281323251,20.0,204.11,204.01,2.78]
[1736281323832,20.0,204.11,204.01,17.2395257]
[1736281324034,20.0,204.11,204.02,14.4595257]
[1736281324248,20.0,204.11,204.01,2.78]
[1736281325763,0.12549,204.1,204.01,2.78]
[1736281326056,0.12549,204.1,203.98,17.2395257]
[1736281326356,20.0,204.03,203.96,14.4595257]
[1736281327265,20.0,204.03,203.99,14.4595257]
[1736281327452,20.0,204.03,203.98,14.4595257]
[1736281328380,20.0,204.03,203.96,14.4595257]
[1736281328537,20.0,204.03,203.92,14.4595257]
[1736281329334,20.0,204.03,203.91,17.2395257]
[1736281329655,20.0,203.99,203.91,14.4595257]
[1736281330060,20.0,203.99,203.9,14.4595257]
[1736281330437,20.0,203.99,203.89,14.5850157]
[1736281330750,20.0,203.99,203.88,2.78]
[1736281331161,20.0,203.99,203.88,17.2395257]
[1736281331343,20.0,203.99,203.89,0.12549]
[1736281331750,20.0,203.99,203.87,14.4595257]
[1736281332146,20.0,203.99,203.88,14.5850157]
[1736281332350,20.0,203.99,203.88,0.12549]
[1736281332954,20.0,203.99,203.89,14.4595257]
[1736281333154,20.0,203.99,203.9,14.4595257]
[1736281334264,20.0,203.99,203.9,0.12549]
[1736281334567,10.547,204.06,203.92,14.4595257]
[1736281334754,23.902374,204.05,203.91,14.4595257]
[1736281335471,20.0,204.02,203.91,0.12549]
[1736281336350,20.0,203.97,203.85,14.4595257]
[1736281336669,20.0,203.97,203.88,0.12549]
[1736281336971,20.0,203.97,203.88,14.5850157]
[1736281337644,20.0,203.97,203.88,0.12549]
[1736281338250,8.043,204.01,203.9,0.12549]
[1736281338668,20.0,203.98,203.9,0.12549]
[1736281338865,20.0,203.98,203.91,14.4595257]
[1736281339069,20.0,203.98,203.92,0.12549]
[1736281339845,20.0,203.98,203.9,14.4595257]
[1736281340051,20.0,203.98,203.9,0.12549]
[1736281340247,23.776884,203.89,203.82,7.57466635]
[1736281340508,23.776884,203.89,203.81,1.36020838]
[1736281340509,20.0,203.86,203.81,1.36020838]
[1736281340798,20.0,203.82,203.8,6.28511114]
[1736281340953,23.776884,203.81,203.8,2.14213916]
[1736281341155,23.776884,203.81,203.79,30.56466543]
[1736281341375,20.0,203.86,203.79,30.56466543]
[1736281341583,20.0,203.86,203.71,44.4595257]
[1736281341772,20.0,203.86,203.75,23.14122103]
[1736281342091,20.0,203.86,203.75,2.78]
[1736281342252,20.0,203.86,203.76,0.12549]
[1736281344483,20.0,203.86,203.76,23.26671103]
[1736281344660,20.0,203.86,203.76,0.861277]
[1736281344865,20.0,203.86,203.76,0.12549]
[1736281345862,6.4526,203.89,203.8,0.12549]
[1736281346182,1.3552,203.93,203.82,23.26671103]
[1736281346354,1.3552,203.93,203.82,0.12549]
[1736281346665,20.0,203.91,203.81,0.12549]
[1736281346860,1.3552,203.93,203.83,0.12549]
[1736281347068,6.613,203.94,203.85,0.12549]
[1736281348079,6.613,203.94,203.84,0.12549]
[1736281348390,7.4136,203.99,203.88,23.26671103]
[1736281348586,6.0584,203.99,203.91,0.12549]
[1736281348760,6.0584,204.04,203.91,0.12549]
[1736281349185,23.776884,204.03,203.9,0.12549]
[1736281349377,20.0,204.0,203.9,0.12549]
[1736281349582,6.0584,204.04,203.9,0.12549]
[1736281350476,20.0,204.0,203.89,0.12549]
[1736281350680,20.0,204.0,203.89,30.12549]
[1736281350886,20.0,204.0,203.91,0.12549]
[1736281351469,20.0,204.01,203.92,53.26671103]
[1736281351674,6.0584,204.04,203.94,23.26671103]
[1736281351980,6.0584,204.09,203.94,23.26671103]
[1736281352381,20.0,204.05,203.94,23.26671103]
[1736281352585,20.0,204.05,203.96,0.12549]
[1736281352889,6.0584,204.09,204.0,0.12549]
[1736281353188,6.0584,204.09,204.0,23.26671103]
[1736281353488,6.0584,204.09,204.0,0.12549]
[1736281354784,20.0,204.06,204.0,23.26671103]
[1736281354997,8.28344117,204.18,204.0,29.57231103]
[1736281355167,6.3183,204.18,204.03,0.12549]
[1736281355372,6.3183,204.18,204.03,23.26671103]
[1736281355582,6.3183,204.18,204.06,0.12549]
[1736281355763,35.1679447,204.19,204.07,23.26671103]
[1736281355964,20.0,204.16,204.07,23.26671103]
[1736281356288,35.1679447,204.19,204.09,23.26671103]
[1736281356490,18.02044039,204.21,204.11,23.26671103]
[1736281356668,6.3183,204.23,204.13,0.12549]
[1736281356989,6.3183,204.23,204.13,0.12548945]
[1736281357163,20.0,204.2,204.08,23.14122103]
[1736281357490,20.0,204.2,204.07,139.08]
[1736281357491,23.776884,204.19,204.07,136.3]
[1736281358776,23.776884,204.19,204.08,23.14122103]
[1736281358976,23.776884,204.19,204.08,0.12549]
[1736281361203,23.776884,204.19,204.04,2.78]
[1736281361362,23.776884,204.19,204.02,2.78]
[1736281361710,20.0,204.14,204.02,25.92122103]
[1736281362194,23.776884,204.17,204.03,0.12549]
[1736281362392,20.0,204.14,204.03,0.12549]
[1736281362586,23.776884,204.15,204.03,0.12549]
[1736281362772,20.0,204.12,204.0,6.3056]
[1736281362972,20.0,204.12,204.01,0.12549]
[1736281363808,20.0,204.12,204.01,23.26671103]
[1736281364506,20.0,204.12,204.01,0.12549]
[1736281365408,20.0,204.12,204.01,23.26671103]
[1736281365786,20.0,204.12,204.01,0.12549]
[1736281366509,20.0,204.12,204.01,23.26671103]
[1736281366811,20.0,204.12,204.04,0.12549]
[1736281367470,20.0,204.12,204.04,23.26671103]
[1736281367669,20.0,204.12,204.05,0.12549]
[1736281368407,20.0,204.12,204.04,0.12549]
[1736281369172,2.78,204.19,204.07,0.12549]
[1736281369408,20.0,204.2,204.07,0.12549]
[1736281369706,22.820693,204.23,204.1,23.26671103]
[1736281369707,25.580693,204.23,204.1,23.26671103]
[1736281369874,6.3183,204.23,204.1,23.26671103]
[1736281370076,20.0,204.2,204.1,0.12549]
[1736281370387,20.0,204.2,204.09,23.26671103]
[1736281370697,20.0,204.2,204.11,0.12549]
[1736281371000,20.0,204.22,204.12,0.12549]
[1736281371397,20.0,204.22,204.11,0.12549]
[1736281373894,20.0,204.24,204.11,23.26671103]
[1736281374279,20.0,204.22,204.11,0.12549]
[1736281375784,20.0,204.22,204.11,23.26671103]
[1736281376183,20.0,204.22,204.11,0.12549]
[1736281376594,43.776884,204.23,204.11,0.12549]
[1736281376798,19.603195,204.26,204.11,0.12549]
[1736281376799,20.0,204.22,204.11,0.12549]
[1736281377424,20.0,204.21,204.11,0.12549]
[1736281377775,19.477795,204.26,204.14,14.41204999]
[1736281378079,2.76,204.32,204.16,14.53753999]
[1736281378277,14.41205,204.31,204.18,0.12549]
[1736281378471,2.76,204.32,204.18,0.12549]
[1736281378696,23.776884,204.31,204.18,0.12549]
[1736281379285,20.0,204.28,204.18,0.12549]
[1736281379507,20.0,204.28,204.17,0.12549]
[1736281380214,20.0,204.28,204.16,0.12549]
[1736281380421,20.0,204.28,204.18,0.12549]
[1736281381291,20.0,204.28,204.2,6.6259]
[1736281381522,14.41205,204.32,204.23,0.12549]
[1736281381907,2.76,204.35,204.23,0.12549]
[1736281382110,23.776884,204.34,204.23,0.12549]
[1736281382300,14.41205,204.37,204.25,0.12549]
[1736281382620,20.0,204.33,204.23,14.41204999]
[1736281382819,17.31245847,204.41,204.27,0.12549]
[1736281383031,2.76,204.4,204.3,0.12549]
[1736281383427,20.0,204.38,204.3,0.12549]
[1736281383999,23.776884,204.37,204.3,0.12549]
[1736281384407,20.0,204.34,204.3,0.12549]
[1736281385445,23.776884,204.39,204.3,0.12549]
[1736281385725,20.0,204.34,204.3,0.12549]
[1736281386408,20.0,204.38,204.3,0.12549]
[1736281387130,20.0,204.36,204.3,0.12549]
[1736281387513,20.0,204.36,204.29,1.5706]
[1736281388636,20.0,204.36,204.22,1.6423]
[1736281389136,20.0,204.34,204.22,1.6423]
[1736281389302,20.0,204.3,204.22,1.6423]
[1736281390412,5.0,204.42,204.22,16.05434999]
[1736281391131,20.0,204.32,204.22,1.6423]
[1736281391633,20.0,204.32,204.22,16.05434999]
[1736281392005,20.0,204.32,204.22,1.6423]
[1736281392823,20.0,204.32,204.23,14.41204999]
[1736281393510,14.41205,204.4,204.27,0.12549]
[1736281393712,8.8167,204.43,204.28,6.4724]
[1736281394039,14.41205,204.42,204.28,6.4724]
[1736281394205,43.776884,204.38,204.28,6.4724]
[1736281394842,14.41205,204.42,204.28,6.4724]
[1736281395210,20.0,204.38,204.29,1.5379]
[1736281395411,35.12381388,204.45,204.32,14.41204999]
[1736281395621,7.81,204.49,204.32,14.41204999]
[1736281395823,6.4724,204.46,204.33,14.41204999]
[1736281396047,2.76,204.47,204.33,14.41204999]
[1736281396217,2.76,204.47,204.31,14.41204999]
[1736281396421,9.2324,204.47,204.31,14.41204999]
[1736281396937,20.0,204.43,204.31,14.41204999]
[1736281397253,20.0,204.39,204.29,1.5379]
[1736281397428,20.0,204.39,204.3,23.0148902]
[1736281397626,20.0,204.39,204.29,24.5527902]
[1736281397834,9.2324,204.47,204.3,0.12549]
[1736281397835,23.776884,204.43,204.3,0.12549]
[1736281398019,23.776884,204.43,204.3,23.1403802]
[1736281398222,23.776884,204.43,204.3,0.12549]
[1736281398643,23.776884,204.39,204.3,0.12549]
[1736281399029,23.776884,204.39,204.29,1.5379]
[1736281399233,20.0,204.41,204.29,1.5379]
[1736281399946,14.2324,204.47,204.29,1.5379]
[1736281400147,20.0,204.44,204.29,1.5379]
[1736281400341,20.0,204.4,204.29,1.5379]
[1736281402156,20.0,204.36,204.29,1.5379]
[1736281403425,16.19693053,204.47,204.29,1.5379]
[1736281403628,8.43693053,204.47,204.29,24.5527902]
[1736281403844,2.76,204.46,204.29,1.5379]
[1736281404448,23.776884,204.45,204.29,1.5379]
[1736281404729,20.0,204.42,204.29,1.5379]
[1736281404932,20.0,204.38,204.29,1.5379]
[1736281405172,1.96453053,204.47,204.33,0.12549]
[1736281405333,19.581558,204.49,204.34,1.79159]
[1736281405533,20.0,204.45,204.34,1.79159]
[1736281405758,20.0,204.41,204.34,1.79159]
[1736281406266,20.0,204.41,204.34,1.6661]
[1736281406632,19.581558,204.49,204.36,0.12549]
[1736281406833,2.76,204.52,204.37,1.579]
[1736281407031,20.0,204.51,204.37,1.579]
[1736281407251,20.0,204.49,204.37,1.579]
[1736281407456,20.0,204.41,204.37,1.579]
[1736281407856,20.0,204.5,204.37,1.579]
[1736281408159,20.0,204.46,204.37,1.579]
[1736281408839,20.0,204.51,204.37,1.579]
[1736281409163,20.0,204.47,204.37,1.579]
[1736281409756,20.0,204.52,204.37,1.579]
[1736281410054,23.776884,204.5,204.37,1.579]
[1736281410470,20.0,204.47,204.37,1.579]
[1736281410648,23.776884,204.5,204.37,1.579]
[1736281410845,23.776884,204.46,204.37,1.579]
[1736281411159,20.0,204.43,204.37,1.579]
[1736281411558,56.63807455,204.55,204.37,1.579]
[1736281411559,2.76,204.51,204.37,24.5938902]
[1736281411737,20.0,204.47,204.37,24.5938902]
[1736281412072,20.0,204.47,204.37,1.579]
[1736281412475,20.0,204.43,204.37,1.579]
[1736281413243,20.0,204.47,204.37,1.579]
[1736281414360,20.0,204.47,204.37,24.5938902]
[1736281414562,2.76,204.52,204.38,23.0148902]
[1736281415042,20.0,204.48,204.37,24.5938902]
[1736281415363,20.0,204.48,204.37,1.579]
[1736281415736,20.0,204.48,204.37,24.5938902]
[1736281415953,37.05929755,204.55,204.37,24.5938902]
[1736281416166,20.0,204.52,204.37,1.579]
[1736281416359,20.0,204.48,204.37,1.579]
[1736281416758,20.0,204.44,204.37,1.579]
[1736281425777,20.0,204.4,204.37,1.579]
[1736281426083,20.0,204.4,204.32,1.5268]
[1736281426260,23.776884,204.39,204.33,0.12549]
[1736281426456,20.0,204.36,204.33,0.12549]
[1736281426773,20.0,204.36,204.32,1.5268]
[1736281427156,20.0,204.36,204.33,0.12549]
[1736281428383,2.76,204.46,204.33,0.12549]
[1736281428675,7.76,204.46,204.32,1.5268]
[1736281428875,20.0,204.38,204.32,1.5268]
[1736281429080,7.76,204.46,204.32,1.5268]
[1736281429081,20.0,204.34,204.32,1.5268]
[1736281430676,20.0,204.34,204.3,6.3864]
[1736281431061,20.0,204.34,204.27,1.5442]
[1736281431250,20.0,204.3,204.27,1.5442]
[1736281431884,20.0,204.3,204.25,6.3743]
[1736281435291,20.0,204.3,204.26,0.12549]
[1736281435583,2.00401784,204.4,204.25,20.75471039]
[1736281435772,23.776884,204.41,204.25,6.3743]
[1736281435973,20.0,204.34,204.25,6.3743]
[1736281437184,20.0,204.33,204.25,6.3743]
[1736281437362,20.0,204.32,204.25,6.3743]
[1736281439696,20.0,204.28,204.25,6.3743]
[1736281439872,23.776884,204.27,204.22,1.5899]
[1736281440063,20.0,204.24,204.22,1.5899]
[1736281440471,20.0,204.24,204.16,1.5067]
[1736281440992,20.0,204.24,204.17,0.12549]
[1736281444070,20.0,204.24,204.16,1.5067]
[1736281446303,20.0,204.2,204.16,1.5067]
[1736281447097,20.0,204.26,204.16,1.5067]
[1736281447303,20.0,204.22,204.16,1.5067]
[1736281447806,20.0,204.18,204.11,1.533]
[1736281448015,23.776884,204.17,204.11,1.533]
[1736281448212,20.0,204.14,204.06,1.533]
[1736281448596,20.0,204.1,204.06,1.533]
[1736281448984,20.0,204.1,204.07,0.12549]
[1736281449189,2.76,204.16,204.07,0.12549]
[1736281453817,2.76,204.16,204.06,1.533]
[1736281455930,20.0,204.12,204.06,1.533]
[1736281456723,23.776884,204.11,204.0,7.7293]
[1736281456933,20.0,204.08,204.0,7.7293]
[1736281457401,20.0,204.08,204.01,0.12549]
[1736281458224,20.0,204.15,204.03,23.19848027]
[1736281458432,20.0,204.11,204.0,7.7293]
[1736281458803,20.0,204.11,204.01,0.12549]
[1736281459130,20.0,204.09,204.01,0.12549]
[1736281460927,20.0,204.11,204.02,23.07299027]
[1736281461234,20.0,204.11,204.01,23.07299027]
[1736281461398,20.0,204.11,204.0,30.80229027]
[1736281461597,20.0,204.11,204.0,7.7293]
[1736281461844,20.0,204.11,204.01,0.12549]
[1736281462730,20.0,204.11,204.01,23.19848027]
[1736281463714,20.0,204.11,204.03,0.12549]
[1736281463919,20.0,204.11,204.04,0.12549]
[1736281464316,35.16314252,204.21,204.05,0.12549]
[1736281464517,19.609564,204.17,204.05,0.12549]
[1736281465018,20.0,204.13,204.01,23.07299027]
[1736281465606,20.0,204.13,204.02,23.07299027]
[1736281465836,20.0,204.13,204.03,0.12549]
[1736281466040,20.0,204.09,204.03,0.12549]
[1736281466343,20.0,204.09,204.0,7.7293]
[1736281466344,20.0,204.05,204.0,7.7293]
[1736281466643,20.0,204.05,204.0,1.5956]
[1736281467014,20.0,204.05,204.01,0.12549]
[1736281468234,20.0,204.05,204.0,1.5956]
[1736281468444,20.0,204.05,203.95,7.9331]
[1736281468445,23.776884,204.04,203.95,7.9331]
[1736281468618,20.0,204.01,203.95,7.9331]
[1736281468813,23.776884,204.0,203.96,0.12549]
[1736281469034,20.0,203.97,203.96,0.12549]
[1736281469546,20.0,203.97,203.9,1.5327]
[1736281469547,1.3552,204.06,203.91,23.19848027]
[1736281469840,20.0,204.02,203.91,23.19848027]
[1736281470051,20.0,204.02,203.9,1.5327]
[1736281470219,20.0,203.98,203.9,1.5327]
[1736281471646,20.0,203.98,203.9,24.60569027]
[1736281471861,2.76,204.07,203.97,0.12549]
[1736281472152,23.776884,204.06,203.95,0.12549]
[1736281472321,23.776884,204.06,203.96,0.12549]
[1736281473058,20.0,204.03,203.96,0.12549]
[1736281474750,20.0,204.03,203.95,0.12549]
[1736281474956,20.0,204.03,203.94,0.25098]
[1736281475348,20.0,204.03,203.94,0.12549]
[1736281475558,20.0,204.03,203.91,14.433319]
[1736281475758,23.776884,204.02,203.91,14.433319]
[1736281475939,20.0,203.99,203.92,14.433319]
[1736281476128,20.0,203.99,203.93,0.25098]
[1736281476324,2.76,204.07,203.93,0.12549]
[1736281476325,23.776884,204.06,203.93,0.12549]
[1736281476660,20.0,204.03,203.93,14.558809]
[1736281476836,20.0,204.03,203.95,0.12549]
[1736281479048,20.0,204.03,203.93,14.433319]
[1736281479233,2.76,204.07,203.93,14.433319]
[1736281479436,20.0,204.03,203.94,0.25098]
[1736281480536,20.0,204.03,203.92,14.433319]
[1736281480735,20.0,204.03,203.93,0.25098]